fUSD/lending_fUSD_20250812
["ID","MTS","AMOUNT","RATE_DAILY","PERIOD"]
[378687649,1754958712971,-510.01,0.00019184,2]
[378687650,1754958712981,-400.0,0.00019184,2]
[378687651,1754958712991,-543.52,0.00019185,2]
[378687652,1754958713000,-3558.75,0.00019185,2]
[378687653,1754958713010,-415.04,0.00019185,2]
[378687654,1754958713019,-400.0,0.00019185,2]
[378687655,1754958713028,-541.87,0.00019185,2]
[378687656,1754958713037,-686.48,0.00019185,2]
[378687657,1754958713046,-400.0,0.00019185,2]
[378687658,1754958713055,-843.54,0.00019185,2]
[378687659,1754958713065,-501.49,0.00019185,2]
[378687660,1754958713074,-411.31,0.00019185,2]
[378687661,1754958713084,-416.82,0.00019185,2]
[378687662,1754958713093,-400.0,0.00019185,2]
[378687663,1754958713102,-400.0,0.00019185,2]
[378687664,1754958713111,-674.0,0.00019185,2]
[378687665,1754958713121,-412.88,0.00019185,2]
[378687666,1754958713130,-400.0,0.00019185,2]
[378687667,1754958713139,-400.0,0.00019185,2]
[378687668,1754958713148,-400.0,0.00019185,2]
[378687669,1754958713157,-400.0,0.00019185,2]
[378687670,1754958713167,-349.59915445,0.00019185,2]
[378687671,1754958713176,-941.84,0.00019185,2]
[378687672,1754958713186,-435.86,0.00019185,2]
[378687673,1754958713194,-415.91,0.00019185,2]
[378687674,1754958713203,-1018.78,0.00019185,2]
[378687675,1754958713212,-400.0,0.00019185,2]
[378687676,1754958713222,-400.0,0.00019185,2]
[378687677,1754958713232,-400.0,0.00019185,2]
[378687678,1754958713242,-400.0,0.00019185,2]
[378687679,1754958713251,-400.0,0.00019185,2]
[378687680,1754958713260,-400.0,0.00019185,2]
[378687681,1754958713270,-716.34,0.00019185,2]
[378687682,1754958713280,-400.0,0.00019185,2]
[378687683,1754958713289,-806.63,0.00019185,2]
[378687684,1754958713299,-400.0,0.00019185,2]
[378687685,1754958713308,-400.0,0.00019185,2]
[378687686,1754958713317,-403.05,0.00019185,2]
[378687687,1754958713326,-487.36,0.00019185,2]
[378687688,1754958713335,-400.0,0.00019185,2]
[378687689,1754958713344,-400.0,0.00019185,2]
[378687690,1754958713353,-400.0,0.00019185,2]
[378687691,1754958713362,-406.99,0.00019185,2]
[378687692,1754958713371,-924.79,0.00019185,2]
[378687693,1754958713380,-896.54,0.00019185,2]
[378687694,1754958713390,-400.0,0.00019185,2]
[378687695,1754958713399,-400.0,0.00019185,2]
[378687696,1754958713408,-400.0,0.00019185,2]
[378687697,1754958713417,-400.0,0.00019185,2]
[378687698,1754958713427,-989.5,0.00019185,2]
[378687699,1754958713435,-400.0,0.00019185,2]
[378687700,1754958713446,-400.0,0.00019185,2]
[378687701,1754958713455,-429.77,0.00019185,2]
[378687702,1754958713465,-446.06,0.00019185,2]
[378687703,1754958713474,-400.0,0.00019185,2]
[378687704,1754958713483,-451.58,0.00019185,2]
[378687705,1754958713492,-840.46,0.00019185,2]
[378687706,1754958713501,-5484.25,0.00019185,2]
[378687707,1754958713510,-444.43,0.00019185,2]
[378687708,1754958713519,-1135.69,0.00019185,2]
[378687709,1754958713529,-400.0,0.00019185,2]
[378687710,1754958713539,-473.46,0.00019185,2]
[378687711,1754958713549,-400.0,0.00019185,2]
[378687712,1754958713558,-504.02,0.00019185,2]
[378687713,1754958713568,-425.72,0.00019185,2]
[378687714,1754958713577,-562.93,0.00019185,2]
[378687715,1754958713587,-485.33,0.00019185,2]
[378687716,1754958713595,-400.0,0.00019185,2]
[378687717,1754958713604,-716.05,0.00019185,2]
[378687718,1754958713613,-409.81,0.00019185,2]
[378687719,1754958713623,-1367.17,0.00019185,2]
[378687720,1754958713631,-418.15,0.00019185,2]
[378687721,1754958713641,-487.67,0.00019185,2]
[378687722,1754958713650,-400.0,0.00019185,2]
[378687723,1754958713659,-463.33,0.00019185,2]
[378687724,1754958713668,-400.0,0.00019185,2]
[378687725,1754958713677,-400.0,0.00019185,2]
[378687726,1754958713686,-400.0,0.00019185,2]
[378687727,1754958713695,-1005.19,0.00019185,2]
[378687728,1754958713704,-456.21,0.00019185,2]
[378687729,1754958713714,-281.44124943,0.00019185,2]
[378687730,1754958713723,-760.85,0.00019185,2]
[378687731,1754958713732,-400.0,0.00019185,2]
[378687732,1754958713741,-461.28,0.00019185,2]
[378687733,1754958713750,-400.0,0.00019185,2]
[378687734,1754958713759,-400.0,0.00019185,2]
[378687735,1754958713768,-415.53,0.00019185,2]
[378687736,1754958713777,-668.63,0.00019185,2]
[378687737,1754958713786,-1056.23,0.00019185,2]
[378687738,1754958713795,-400.0,0.00019185,2]
[378687739,1754958713805,-400.0,0.00019185,2]
[378687740,1754958713821,-401.8,0.00019185,2]
[378687741,1754958713831,-400.0,0.00019185,2]
[378687742,1754958713841,-400.0,0.00019185,2]
[378687743,1754958713851,-1254.99,0.00019185,2]
[378687744,1754958713862,-510.55008947,0.00019185,2]
[378687745,1754958713871,-400.0,0.00019185,2]
[378687746,1754958713880,-400.0,0.00019185,2]
[378687747,1754958713891,-400.0,0.00019185,2]
[378687748,1754958713902,-416.54,0.00019185,2]
[378687749,1754958713913,-448.0,0.00019185,2]
[378687750,1754958713922,-434.77,0.00019185,2]
[378687751,1754958713933,-400.0,0.00019185,2]
[378687752,1754958713942,-400.0,0.00019185,2]
[378687753,1754958713951,-1026.25,0.00019185,2]
[378687754,1754958713960,-428.67,0.00019185,2]
[378687755,1754958713969,-400.0,0.00019185,2]
[378687756,1754958713978,-855.22,0.00019185,2]
[378687757,1754958713987,-400.0,0.00019185,2]
[378687758,1754958713996,-527.94,0.00019185,2]
[378687759,1754958714006,-690.8,0.00019185,2]
[378687760,1754958714015,-660.29,0.00019185,2]
[378687761,1754958714024,-661.7,0.00019185,2]
[378687762,1754958714033,-400.0,0.00019185,2]
[378687763,1754958714042,-400.0,0.00019185,2]
[378687764,1754958714051,-553.06,0.00019185,2]
[378687765,1754958714232,-485.52,0.00019185,2]
[378687766,1754958714243,-414.15,0.00019185,2]
[378687767,1754958714252,-400.0,0.00019185,2]
[378687768,1754958714262,-689.02,0.00019185,2]
[378687769,1754958714271,-1107.19,0.00019195,2]
[378687770,1754958714281,-646.57,0.00019195,2]
[378687771,1754958714290,-739.29,0.00019195,2]
[378687772,1754958714300,-541.35,0.00019195,2]
[378687773,1754958714309,-756.83,0.00019195,2]
[378687774,1754958714318,-400.0,0.00019195,2]
[378687775,1754958714327,-540.43,0.00019195,2]
[378687776,1754958714336,-880.76,0.00019195,2]
[378687777,1754958714346,-1331.32,0.00019195,2]
[378687778,1754958714355,-1152.75,0.00019195,2]
[378687779,1754958714365,-1103.08,0.00019195,2]
[378687780,1754958714375,-673.98,0.00019195,2]
[378687781,1754958714385,-667.16,0.00019195,2]
[378687782,1754958714394,-1238.08,0.00019195,2]
[378687783,1754958714404,-723.65,0.00019195,2]
[378687784,1754958714413,-741.47,0.00019195,2]
[378687785,1754958714423,-1093.69,0.00019195,2]
[378687786,1754958714433,-5867.06,0.00019195,2]
[378687787,1754958714442,-810.42,0.00019196,2]
[378687788,1754958714452,-3000.0,0.00019212,2]
[378687789,1754958714462,-867.8464043,0.00019264,2]
[378687790,1754958714472,-4662.7329275,0.00019266,2]
[378687791,1754958714481,-400.0,0.00019278,2]
[378687792,1754958714492,-527.11083762,0.00019278,2]
[378687793,1754958714502,-400.0,0.00019278,2]
[378687794,1754958714511,-400.0,0.00019278,2]
[378687795,1754958714522,-400.0,0.00019278,2]
[378687796,1754958714532,-400.0,0.00019278,2]
[378687797,1754958714541,-400.0,0.00019278,2]
[378687798,1754958714550,-400.0,0.00019278,2]
[378687799,1754958714559,-400.0,0.00019278,2]
[378687800,1754958714569,-400.0,0.00019278,2]
[378687801,1754958714578,-400.0,0.00019278,2]
[378687802,1754958714588,-400.0,0.00019278,2]
[378687803,1754958714598,-400.0,0.00019278,2]
[378687804,1754958714607,-400.0,0.00019278,2]
[378687805,1754958714617,-400.0,0.00019278,2]
[378687806,1754958714626,-400.0,0.00019278,2]
[378687807,1754958714635,-400.0,0.00019278,2]
[378687808,1754958714645,-400.0,0.00019278,2]
[378687809,1754958714654,-1213.14823,0.0001928,2]
[378687810,1754958714664,-700.0,0.00019328,2]
[378687811,1754958714674,-700.0,0.00019328,2]
[378687812,1754958714683,-700.0,0.00019328,2]
[378687813,1754958714693,-700.0,0.00019328,2]
[378687814,1754958714702,-700.0,0.00019328,2]
[378687815,1754958714711,-700.0,0.00019328,2]
[378687816,1754958714722,-700.0,0.00019328,2]
[378687817,1754958714732,-700.0,0.00019328,2]
[378687818,1754958714741,-270.59,0.00019382,2]
[378687819,1754958714751,-153.83,0.00019395,2]
[378687820,1754958714760,-1000.0,0.00019399,2]
[378687821,1754958714769,-1000.0,0.00019399,2]
[378687822,1754958714779,-1015.34484348,0.000194,2]
[378687823,1754958714788,-1000.0,0.0001941,2]
[378687824,1754958714797,-1353.75,0.00019445,2]
[378687825,1754958714806,-1368.73,0.00019445,2]
[378687826,1754958714821,-835.27,0.00019445,2]
[378687827,1754958714830,-638.05,0.00019445,2]
[378687828,1754958714839,-1206.42,0.00019445,2]
[378687829,1754958714848,-8653.14,0.00019445,2]
[378687830,1754958714858,-700.0,0.00019454,2]
[378687831,1754958714868,-700.0,0.00019454,2]
[378687832,1754958714877,-700.0,0.00019454,2]
[378687833,1754958714888,-700.0,0.00019454,2]
[378687834,1754958714898,-700.0,0.00019454,2]
[378687835,1754958714907,-700.0,0.00019454,2]
[378687836,1754958714916,-700.0,0.00019454,2]
[378687837,1754958714925,-700.0,0.00019454,2]
[378687838,1754958714934,-574.72,0.00019457,2]
[378687839,1754958714943,-978.66,0.00019457,2]
[378687840,1754958714953,-539.9,0.00019457,2]
[378687841,1754958714963,-400.0,0.00019457,2]
[378687842,1754958714973,-480.66,0.00019457,2]
[378687843,1754958714982,-446.06,0.00019457,2]
[378687844,1754958714992,-632.96,0.00019457,2]
[378687845,1754958715001,-833.05,0.00019457,2]
[378687846,1754958715010,-400.0,0.00019457,2]
[378687847,1754958715019,-594.7,0.00019458,2]
[378687848,1754958715028,-400.0,0.00019458,2]
[378687849,1754958715037,-400.0,0.00019458,2]
[378687850,1754958715046,-400.0,0.00019458,2]
[378687851,1754958715055,-400.0,0.00019458,2]
[378687852,1754958715065,-541.45961275,0.00019458,2]
[378687853,1754958715074,-400.0,0.00019458,2]
[378687854,1754958715084,-400.0,0.00019458,2]
[378687855,1754958715093,-541.43,0.00019458,2]
[378687856,1754958715102,-400.0,0.00019458,2]
[378687857,1754958715111,-400.0,0.00019458,2]
[378687858,1754958715120,-586.31,0.00019458,2]
[378687859,1754958715130,-401.96131948,0.00019458,2]
[378687860,1754958715139,-445.65,0.00019458,2]
[378687861,1754958715148,-400.0,0.00019458,2]
[378687862,1754958715158,-400.0,0.00019458,2]
[378687863,1754958715167,-400.0,0.00019458,2]
[378687864,1754958715176,-555.3,0.00019458,2]
[378687865,1754958715186,-400.0,0.00019458,2]
[378687866,1754958715195,-455.46,0.00019458,2]
[378687867,1754958715204,-528.53,0.00019458,2]
[378687868,1754958715213,-400.0,0.00019458,2]
[378687869,1754958715222,-808.45,0.00019458,2]
[378687870,1754958715231,-400.0,0.00019458,2]
[378687871,1754958715240,-400.0,0.00019458,2]
[378687872,1754958715250,-600.96,0.00019458,2]
[378687873,1754958715260,-400.0,0.00019458,2]
[378687874,1754958715270,-400.0,0.00019458,2]
[378687875,1754958715280,-400.0,0.00019458,2]
[378687876,1754958715290,-400.0,0.00019458,2]
[378687877,1754958715300,-482.19,0.00019458,2]
[378687878,1754958715310,-400.0,0.00019458,2]
[378687879,1754958715321,-548.353883,0.00019458,2]
[378687880,1754958715330,-349.959486,0.00019458,2]
[378687881,1754958715340,-400.0,0.00019458,2]
[378687882,1754958715350,-611.02,0.00019458,2]
[378687883,1754958715359,-446.81062861,0.00019458,2]
[378687884,1754958715369,-409.66,0.00019458,2]
[378687885,1754958715378,-400.0,0.00019458,2]
[378687886,1754958715388,-652.048561,0.00019458,2]
[378687887,1754958715398,-400.0,0.00019458,2]
[378687888,1754958715407,-800.99,0.00019458,2]
[378687889,1754958715416,-400.0,0.00019458,2]
[378687890,1754958715426,-193.59246716,0.00019458,2]
[378687891,1754958715435,-400.0,0.00019458,2]
[378687892,1754958715445,-820.43,0.00019458,2]
[378687893,1754958715454,-400.0,0.00019458,2]
[378687894,1754958715466,-565.37,0.00019458,2]
[378687895,1754958715477,-573.02,0.00019458,2]
[378687896,1754958715487,-400.0,0.00019458,2]
[378687897,1754958715497,-1278.03,0.00019458,2]
[378687898,1754958715506,-422.09,0.00019458,2]
[378687899,1754958715516,-683.8,0.00019458,2]
[378687900,1754958715526,-400.0,0.00019458,2]
[378687901,1754958715536,-1082.91,0.00019458,2]
[378687902,1754958715546,-400.0,0.00019458,2]
[378687903,1754958715555,-400.0,0.00019458,2]
[378687904,1754958715565,-592.11,0.00019458,2]
[378687905,1754958715575,-400.0,0.00019458,2]
[378687906,1754958715584,-1009.96,0.00019458,2]
[378687907,1754958715593,-487.32,0.00019458,2]
[378687908,1754958715604,-471.77,0.00019458,2]
[378687909,1754958715613,-405.23,0.00019458,2]
[378687910,1754958715622,-482.58,0.00019458,2]
[378687911,1754958715632,-1964.74,0.00019458,2]
[378687912,1754958715641,-400.0,0.00019458,2]
[378687913,1754958715650,-591.6,0.00019458,2]
[378687914,1754958715661,-400.0,0.00019458,2]
[378687915,1754958715670,-223.94191154,0.00019458,2]
[378687916,1754958715679,-400.0,0.00019458,2]
[378687917,1754958715689,-618.38,0.00019458,2]
[378687918,1754958715698,-400.0,0.00019458,2]
[378687919,1754958715708,-400.0,0.00019458,2]
[378687920,1754958715718,-448.94,0.00019458,2]
[378687921,1754958715727,-2118.04,0.00019458,2]
[378687922,1754958715738,-1807.34,0.00019458,2]
[378687923,1754958715747,-400.0,0.00019458,2]
[378687924,1754958715756,-400.0,0.00019458,2]
[378687925,1754958715767,-927.74,0.00019458,2]
[378687926,1754958715777,-936.33,0.00019458,2]
[378687927,1754958715787,-609.57,0.00019458,2]
[378687928,1754958715797,-400.0,0.00019458,2]
[378687929,1754958715807,-977.28,0.00019458,2]
[378687930,1754958715822,-1290.89,0.00019458,2]
[378687931,1754958715831,-417.25,0.00019458,2]
[378687932,1754958715841,-498.28,0.00019458,2]
[378687933,1754958715850,-510.01,0.00019458,2]
[378687934,1754958715862,-400.0,0.00019458,2]
[378687935,1754958715872,-543.52,0.00019459,2]
[378687936,1754958715881,-3558.75,0.00019459,2]
[378687937,1754958715893,-415.04,0.00019459,2]
[378687938,1754958715904,-400.0,0.00019459,2]
[378687939,1754958715914,-541.87,0.00019459,2]
[378687940,1754958715923,-686.48,0.00019459,2]
[378687941,1754958715932,-400.0,0.00019459,2]
[378687942,1754958715942,-843.54,0.00019459,2]
[378687943,1754958715953,-501.49,0.00019459,2]
[378687944,1754958715962,-411.31,0.00019459,2]
[378687945,1754958715973,-416.82,0.00019459,2]
[378687946,1754958715984,-400.0,0.00019459,2]
[378687947,1754958715994,-400.0,0.00019459,2]
[378687948,1754958716005,-674.0,0.00019459,2]
[378687949,1754958716015,-412.88,0.00019459,2]
[378687950,1754958716024,-400.0,0.00019459,2]
[378687951,1754958716034,-400.0,0.00019459,2]
[378687952,1754958716043,-400.0,0.00019459,2]
[378687953,1754958716055,-400.0,0.00019459,2]
[378687954,1754958716065,-941.84,0.00019459,2]
[378687955,1754958716075,-435.86,0.00019459,2]
[378687956,1754958716085,-415.91,0.00019459,2]
[378687957,1754958716095,-1018.78,0.00019459,2]
[378687958,1754958716105,-400.0,0.00019459,2]
[378687959,1754958716114,-421.39686902,0.00019459,2]
[378687960,1754958716123,-400.0,0.00019459,2]
[378687961,1754958716133,-400.0,0.00019459,2]
[378687962,1754958716142,-400.0,0.00019459,2]
[378687963,1754958716150,-400.0,0.00019459,2]
[378687964,1754958716159,-716.34,0.00019459,2]
[378687965,1754958716169,-372.4321884,0.00019459,2]
[378687966,1754958716178,-806.63,0.00019459,2]
[378687967,1754958716187,-400.0,0.00019459,2]
[378687968,1754958716196,-400.0,0.00019459,2]
[378687969,1754958716205,-403.05,0.00019459,2]
[378687970,1754958716214,-487.36,0.00019459,2]
[378687971,1754958716223,-400.0,0.00019459,2]
[378687972,1754958716233,-400.0,0.00019459,2]
[378687973,1754958716243,-400.0,0.00019459,2]
[378687974,1754958716253,-406.99,0.00019459,2]
[378687975,1754958716263,-924.79,0.00019459,2]
[378687976,1754958716273,-896.54,0.00019459,2]
[378687977,1754958716283,-400.0,0.00019459,2]
[378687978,1754958716293,-400.0,0.00019459,2]
[378687979,1754958716303,-326.79719228,0.00019459,2]
[378687980,1754958716312,-400.0,0.00019459,2]
[378687981,1754958716324,-989.5,0.00019459,2]
[378687982,1754958716333,-400.0,0.00019459,2]
[378687983,1754958716342,-400.0,0.00019459,2]
[378687984,1754958716351,-429.77,0.00019459,2]
[378687985,1754958716360,-446.06,0.00019459,2]
[378687986,1754958716370,-400.0,0.00019459,2]
[378687987,1754958716379,-451.58,0.00019459,2]
[378687988,1754958716389,-840.46,0.00019459,2]
[378687989,1754958716398,-5484.25,0.00019459,2]
[378687990,1754958716407,-444.43,0.00019459,2]
[378687991,1754958716416,-1135.69,0.00019459,2]
[378687992,1754958716425,-400.0,0.00019459,2]
[378687993,1754958716435,-473.46,0.00019459,2]
[378687994,1754958716444,-400.0,0.00019459,2]
[378687995,1754958716454,-504.02,0.00019459,2]
[378687996,1754958716463,-425.72,0.00019459,2]
[378687997,1754958716473,-562.93,0.00019459,2]
[378687998,1754958716482,-485.33,0.00019459,2]
[378687999,1754958716492,-400.0,0.00019459,2]
[378688000,1754958716501,-716.05,0.00019459,2]
[378688001,1754958716510,-409.81,0.00019459,2]
[378688002,1754958716520,-1367.17,0.00019459,2]
[378688003,1754958716529,-418.15,0.00019459,2]
[378688004,1754958716538,-487.67,0.00019459,2]
[378688005,1754958716551,-400.0,0.00019459,2]
[378688006,1754958716560,-463.33,0.00019459,2]
[378688007,1754958716570,-430.04795682,0.00019459,2]
[378688008,1754958716579,-400.0,0.00019459,2]
[378688009,1754958716589,-400.0,0.00019459,2]
[378688010,1754958716598,-1005.19,0.00019459,2]
[378688011,1754958716608,-456.21,0.00019459,2]
[378688012,1754958716617,-760.85,0.00019459,2]
[378688013,1754958716627,-400.0,0.00019459,2]
[378688014,1754958716636,-461.28,0.00019459,2]
[378688015,1754958716645,-400.0,0.00019459,2]
[378688016,1754958716654,-400.0,0.00019459,2]
[378688017,1754958716665,-415.53,0.00019459,2]
[378688018,1754958716674,-668.63,0.00019459,2]
[378688019,1754958716684,-1056.23,0.00019459,2]
[378688020,1754958716694,-400.0,0.00019459,2]
[378688021,1754958716703,-400.0,0.00019459,2]
[378688022,1754958716713,-401.8,0.00019459,2]
[378688023,1754958716722,-400.0,0.00019459,2]
[378688024,1754958716732,-400.0,0.00019459,2]
[378688025,1754958716741,-1254.99,0.00019459,2]
[378688026,1754958716750,-400.0,0.00019459,2]
[378688027,1754958716760,-400.0,0.00019459,2]
[378688028,1754958716770,-400.0,0.00019459,2]
[378688029,1754958716779,-416.54,0.00019459,2]
[378688030,1754958716788,-448.0,0.00019459,2]
[378688031,1754958716797,-434.77,0.00019459,2]
[378688032,1754958716807,-400.0,0.00019459,2]
[378688033,1754958716821,-400.0,0.00019459,2]
[378688034,1754958716831,-1026.25,0.00019459,2]
[378688035,1754958716840,-428.67,0.00019459,2]
[378688036,1754958716850,-400.0,0.00019459,2]
[378688037,1754958716860,-855.22,0.00019459,2]
[378688038,1754958716870,-400.0,0.00019459,2]
[378688039,1754958716880,-527.94,0.00019459,2]
[378688040,1754958716890,-690.8,0.00019459,2]
[378688041,1754958716900,-660.29,0.00019459,2]
[378688042,1754958716910,-661.7,0.00019459,2]
[378688043,1754958716922,-400.0,0.00019459,2]
[378688044,1754958716932,-400.0,0.00019459,2]
[378688045,1754958716941,-553.06,0.00019459,2]
[378688046,1754958716952,-485.52,0.00019459,2]
[378688047,1754958716963,-414.15,0.00019459,2]
[378688048,1754958716972,-689.02,0.00019459,2]
[378688049,1754958717150,-400.0,0.00019459,2]
[378688050,1754958717160,-2500.0,0.00019464,2]
[378688051,1754958717169,-1107.19,0.00019469,2]
[378688052,1754958717178,-646.57,0.00019469,2]
[378688053,1754958717188,-739.29,0.00019469,2]
[378688054,1754958717197,-541.35,0.00019469,2]
[378688055,1754958717208,-756.83,0.00019469,2]
[378688056,1754958717217,-400.0,0.00019469,2]
[378688057,1754958717227,-540.43,0.00019469,2]
[378688058,1754958717236,-880.76,0.00019469,2]
[378688059,1754958717246,-1331.32,0.00019469,2]
[378688060,1754958717255,-1152.75,0.00019469,2]
[378688061,1754958717264,-1103.08,0.00019469,2]
[378688062,1754958717274,-673.98,0.00019469,2]
[378688063,1754958717283,-667.16,0.00019469,2]
[378688064,1754958717293,-1238.08,0.00019469,2]
[378688065,1754958717302,-723.65,0.00019469,2]
[378688066,1754958717312,-741.47,0.00019469,2]
[378688067,1754958717322,-1093.69,0.00019469,2]
[378688068,1754958717331,-5867.06,0.00019469,2]
[378688069,1754958717340,-810.42,0.0001947,2]
[378688070,1754958717350,-500.0,0.000195,3]
[378688071,1754958717359,-500.0,0.000195,3]
[378688072,1754958717368,-500.0,0.000195,3]
[378688073,1754958717378,-400.0,0.00019552,2]
[378688074,1754958717387,-400.0,0.00019552,2]
[378688075,1754958717397,-400.0,0.00019552,2]
[378688076,1754958717406,-400.0,0.00019552,2]
[378688077,1754958717415,-400.0,0.00019552,2]
[378688078,1754958717424,-400.0,0.00019552,2]
[378688079,1754958717433,-400.0,0.00019552,2]
[378688080,1754958717443,-400.0,0.00019552,2]
[378688081,1754958717452,-400.0,0.00019552,2]
[378688082,1754958717461,-400.0,0.00019552,2]
[378688083,1754958717471,-400.0,0.00019552,2]
[378688084,1754958717481,-400.0,0.00019552,2]
[378688085,1754958717491,-400.0,0.00019552,2]
[378688086,1754958717500,-400.0,0.00019552,2]
[378688087,1754958717510,-400.0,0.00019552,2]
[378688088,1754958717519,-400.0,0.00019552,2]
[378688089,1754958717529,-400.0,0.00019552,2]
[378688090,1754958717539,-200.0,0.00019654,2]
[378688091,1754958717548,-1295.0,0.0001969,2]
[378688092,1754958717558,-598.0,0.0001969,2]
[378688093,1754958717567,-1042.0,0.0001969,2]
[378688094,1754958717577,-2027.0,0.0001969,2]
[378688095,1754958717586,-565.0,0.0001969,2]
[378688096,1754958717597,-1654.0,0.0001969,2]
[378688097,1754958717607,-1171.0,0.0001969,2]
[378688098,1754958717616,-6082.0,0.0001969,2]
[378688099,1754958717625,-3367.0,0.0001969,2]
[378688100,1754958717635,-716.0,0.0001969,2]
[378688101,1754958717644,-21461.0,0.0001969,2]
[378688102,1754958717653,-1353.75,0.00019719,2]
[378688103,1754958717662,-1368.73,0.00019719,2]
[378688104,1754958717673,-835.27,0.00019719,2]
[378688105,1754958717682,-638.05,0.00019719,2]
[378688106,1754958717691,-1206.42,0.00019719,2]
[378688107,1754958717701,-8653.14,0.00019719,2]
[378688108,1754958717710,-400.0,0.00019726,2]
[378688109,1754958717720,-400.0,0.00019726,2]
[378688110,1754958717729,-400.0,0.00019726,2]
[378688111,1754958717739,-400.0,0.00019726,2]
[378688112,1754958717748,-346.30555424,0.00019726,2]
[378688113,1754958717757,-250.0,0.00019726,2]
[378688114,1754958717767,-156.587,0.00019726,2]
[378688115,1754958717776,-574.72,0.00019731,2]
[378688116,1754958717785,-978.66,0.00019731,2]
[378688117,1754958717794,-539.9,0.00019731,2]
[378688118,1754958717804,-400.0,0.00019731,2]
[378688119,1754958717818,-480.66,0.00019731,2]
[378688120,1754958717827,-446.06,0.00019731,2]
[378688121,1754958717837,-632.96,0.00019731,2]
[378688122,1754958717846,-833.05,0.00019731,2]
[378688123,1754958717856,-400.0,0.00019731,2]
[378688124,1754958717865,-594.7,0.00019732,2]
[378688125,1754958717875,-400.0,0.00019732,2]
[378688126,1754958717884,-400.0,0.00019732,2]
[378688127,1754958717893,-400.0,0.00019732,2]
[378688128,1754958717902,-400.0,0.00019732,2]
[378688129,1754958717911,-400.0,0.00019732,2]
[378688130,1754958717920,-400.0,0.00019732,2]
[378688131,1754958717929,-541.43,0.00019732,2]
[378688132,1754958717938,-400.0,0.00019732,2]
[378688133,1754958717947,-400.0,0.00019732,2]
[378688134,1754958717956,-586.31,0.00019732,2]
[378688135,1754958717965,-445.65,0.00019732,2]
[378688136,1754958717974,-400.0,0.00019732,2]
[378688137,1754958717983,-400.0,0.00019732,2]
[378688138,1754958717993,-400.0,0.00019732,2]
[378688139,1754958718002,-555.3,0.00019732,2]
[378688140,1754958718011,-400.0,0.00019732,2]
[378688141,1754958718020,-455.46,0.00019732,2]
[378688142,1754958718029,-528.53,0.00019732,2]
[378688143,1754958718039,-400.0,0.00019732,2]
[378688144,1754958718048,-808.45,0.00019732,2]
[378688145,1754958718057,-400.0,0.00019732,2]
[378688146,1754958718066,-400.0,0.00019732,2]
[378688147,1754958718075,-600.96,0.00019732,2]
[378688148,1754958718084,-356.408868,0.00019732,2]